bitfinex-derivatives/quotes_SOLF0:USTF0_20250516
["timestamp","ask_amount","ask_price","bid_price","bid_amount"]
[1747389562754,5.7875,172.73,172.7,5.7884]
[1747389563756,5.7872,172.74,172.7,5.7884]
[1747389564453,5.7872,172.74,172.71,5.7881]
[1747389564848,1.9562,172.79,172.68,59.8]
[1747389565057,59.84,172.83,172.7,10.85720049]
[1747389565259,59.84,172.83,172.7,10.85199294]
[1747389565549,59.84,172.83,172.7,10.85236093]
[1747389565757,59.84,172.83,172.75,5.7866]
[1747389566652,59.84,172.83,172.74,5.7871]
[1747389567156,5.7861,172.78,172.74,5.7871]
[1747389567351,5.7861,172.78,172.75,5.7868]
[1747389568655,59.74,172.77,172.65,1.8593]
[1747389568954,1.9171,172.76,172.61,59.98]
[1747389569154,59.98,172.75,172.61,59.98]
[1747389569758,5.7894,172.68,172.64,5.7904]
[1747389570458,5.7896,172.67,172.64,5.7904]
[1747389570653,5.7896,172.67,172.63,5.7907]
[1747389571364,5.7898,172.66,172.61,59.98]
[1747389571563,59.88,172.7,172.61,59.98]
[1747389571864,59.88,172.7,172.63,5.7905]
[1747389572056,5.7901,172.66,172.63,5.7905]
[1747389572863,5.7902,172.65,172.61,59.98]
[1747389573167,1.9175,172.69,172.61,59.98]
[1747389573365,5.7896,172.67,172.61,59.98]
[1747389573966,59.78,172.68,172.61,59.98]
[1747389574467,5.7904,172.65,172.61,65.7714]
[1747389574764,5.7904,172.65,172.61,59.98]
[1747389575262,5.7904,172.65,172.62,5.791]
[1747389576168,5.7904,172.65,172.61,65.7714]
[1747389576761,5.7904,172.65,172.62,5.7911]
[1747389578367,5.7904,172.65,172.61,65.7714]
[1747389578568,59.78,172.68,172.58,560.52]
[1747389578773,60.0,172.67,172.58,60.0]
[1747389578969,5.791,172.63,172.59,5.792]
[1747389580475,5.7912,172.62,172.59,5.792]
[1747389580970,5.791,172.63,172.59,5.792]
[1747389581170,59.84,172.75,172.62,10.85950272]
[1747389581371,59.84,172.75,172.63,59.64]
[1747389581573,59.84,172.75,172.64,59.96]
[1747389581875,5.7873,172.74,172.69,5.7888]
[1747389582275,5.7875,172.73,172.69,5.7888]
[1747389582575,59.84,172.75,172.69,5.7888]
[1747389582873,5.7874,172.74,172.7,5.7883]
[1747389583064,59.84,172.75,172.67,59.64]
[1747389583263,5.7878,172.72,172.67,59.64]
[1747389583775,5.7878,172.72,172.68,5.7889]
[1747389583976,5.7876,172.73,172.67,59.64]
[1747389584177,59.84,172.75,172.67,59.64]
[1747389585271,5.7877,172.73,172.67,59.64]
[1747389585476,59.84,172.75,172.67,59.64]
[1747389585665,5.7874,172.74,172.71,5.7881]
[1747389585865,59.9,172.75,172.67,59.64]
[1747389586175,65.6871,172.75,172.71,5.7879]
[1747389586373,5.7871,172.75,172.67,59.64]
[1747389586569,65.6671,172.75,172.67,59.64]
[1747389586764,5.7871,172.75,172.72,5.7878]
[1747389587574,59.88,172.76,172.67,59.64]
[1747389587874,59.64,172.77,172.67,59.64]
[1747389588075,5.7873,172.74,172.71,5.788]
[1747389588476,59.88,172.76,172.67,59.64]
[1747389589478,5.7872,172.74,172.72,5.7878]
[1747389589674,59.88,172.76,172.61,513.05480272]
[1747389589974,59.88,172.76,172.6,59.62]
[1747389590174,59.88,172.76,172.64,5.7905]
[1747389590369,59.88,172.76,172.6,59.62]
[1747389590570,5.7902,172.65,172.61,5.7914]
[1747389590771,59.9,172.67,172.61,5.7914]
[1747389590972,59.9,172.67,172.6,59.62]
[1747389591484,59.9,172.67,172.56,59.62]
[1747389592373,59.9,172.66,172.56,59.62]
[1747389592679,5.7907,172.64,172.6,5.7916]
[1747389594780,5.7907,172.64,172.61,5.7914]
[1747389595782,5.7907,172.64,172.6,5.7918]
[1747389596781,5.7913,172.62,172.58,5.7924]
[1747389596982,5.7913,172.62,172.56,59.62]
[1747389597176,5.791,172.63,172.59,5.7922]
[1747389597684,5.791,172.63,172.6,5.7918]
[1747389597881,59.9,172.66,172.56,59.62]
[1747389598382,59.64,172.75,172.59,10.86657052]
[1747389598583,5.8545,172.74,172.6,123.5769]
[1747389598786,5.8545,172.74,172.63,10.86657052]
[1747389598986,60.14,172.73,172.64,119.78]
[1747389599689,5.7879,172.72,172.64,119.78]
[1747389600983,125.6145,172.74,172.64,119.78]
[1747389601590,5.7887,172.7,172.66,5.7897]
[1747389601783,5.7887,172.7,172.63,10.86657052]
[1747389601984,5.7887,172.7,172.64,59.64]
[1747389602291,5.7887,172.7,172.67,5.7892]
[1747389603489,5.7889,172.69,172.66,5.7898]
[1747389603790,5.7889,172.69,172.64,59.64]
[1747389604292,5.7886,172.7,172.67,5.7894]
[1747389604893,5.7889,172.69,172.67,5.7894]
[1747389605292,125.6145,172.74,172.67,5.7894]
[1747389605593,5.7886,172.7,172.67,5.7894]
[1747389606794,5.7886,172.7,172.64,59.64]
[1747389607595,5.7886,172.7,172.67,5.7893]
[1747389608092,125.6145,172.74,172.67,5.7893]
[1747389608295,125.6145,172.74,172.64,59.64]
[1747389608296,125.6145,172.74,172.66,5.7898]
[1747389608499,5.7887,172.7,172.64,59.64]
[1747389609687,5.7883,172.71,172.64,59.64]
[1747389609998,125.6145,172.74,172.64,59.64]
[1747389610397,5.7887,172.7,172.64,59.64]
[1747389610602,125.6145,172.74,172.66,5.7897]
[1747389610893,125.6145,172.74,172.64,59.64]
[1747389611591,5.7889,172.69,172.66,5.7897]
[1747389611791,125.6145,172.74,172.64,59.64]
[1747389612199,125.6145,172.74,172.66,5.7898]
[1747389613201,125.6145,172.74,172.67,5.7894]
[1747389614099,5.7887,172.7,172.67,5.7894]
[1747389614395,5.8545,172.74,172.66,5.7897]
[1747389614693,59.76,172.74,172.64,59.64]
[1747389615089,59.76,172.74,172.7,5.7885]
[1747389615293,5.7877,172.73,172.64,59.64]
[1747389615997,5.7879,172.72,172.64,59.64]
[1747389616499,5.7876,172.73,172.7,5.7883]
[1747389617003,59.72,172.74,172.64,59.64]
[1747389617801,5.788,172.72,172.64,59.64]
[1747389618500,5.7882,172.71,172.69,5.7886]
[1747389618702,59.72,172.74,172.63,59.82]
[1747389619795,10.86657052,172.7,172.57,59.82]
[1747389619999,125.3571,172.69,172.57,59.82]
[1747389620204,125.3571,172.69,172.58,5.7923]
[1747389620501,125.3571,172.69,172.57,59.82]
[1747389620705,5.7924,172.59,172.55,5.7933]
[1747389621003,5.7924,172.59,172.54,59.82]
[1747389621202,59.76,172.62,172.54,59.82]
[1747389621404,1.9605,172.61,172.5,119.58]
[1747389621805,5.7928,172.58,172.54,5.7936]
[1747389621995,1.9605,172.61,172.5,119.58]
[1747389622199,3.882,172.61,172.54,5.7936]
[1747389622396,5.7921,172.6,172.5,119.58]
[1747389622602,3.882,172.61,172.5,119.58]
[1747389623107,5.7921,172.6,172.5,119.58]
[1747389623404,5.7921,172.6,172.56,5.793]
[1747389623598,5.7921,172.6,172.5,119.58]
[1747389623599,5.7926,172.58,172.5,119.58]
[1747389623794,3.882,172.61,172.5,119.58]
[1747389624306,3.882,172.61,172.55,5.7933]
[1747389624609,3.882,172.61,172.5,119.58]
[1747389624903,5.7928,172.58,172.5,119.58]
[1747389625811,5.7929,172.57,172.5,119.58]
[1747389626113,5.8369,172.61,172.5,119.58]
[1747389626301,5.8369,172.61,172.47,1.8064]
[1747389626302,10.86657052,172.54,172.4,1.00859333]
[1747389626606,10.86657052,172.48,172.33,20.39271238]
[1747389626808,125.2297,172.47,172.33,20.39271238]
[1747389627311,5.7973,172.44,172.37,5.7995]
[1747389627508,121.44,172.43,172.37,5.7995]
[1747389627802,5.7979,172.42,172.37,5.7995]
[1747389628400,5.7983,172.41,172.36,5.7999]
[1747389628604,121.44,172.43,172.33,59.84]
[1747389629010,5.7988,172.4,172.35,5.8001]
[1747389629511,121.44,172.43,172.33,65.6409]
[1747389629707,121.44,172.43,172.31,61.58]
[1747389630010,5.7985,172.41,172.31,61.58]
[1747389630209,61.58,172.46,172.34,10.86657052]
[1747389630409,61.58,172.46,172.35,121.44]
[1747389630711,5.7978,172.43,172.38,5.7992]
[1747389630911,5.7978,172.43,172.35,121.44]
[1747389631713,121.54,172.42,172.3,61.8138]
[1747389631913,59.88,172.41,172.36,5.7996]
[1747389632109,5.7989,172.39,172.3,61.8138]
[1747389632308,59.88,172.41,172.3,61.8138]
[1747389632508,59.88,172.41,172.34,5.8005]
[1747389632713,5.7992,172.39,172.3,123.5338]
[1747389633515,5.7993,172.38,172.3,123.5338]
[1747389633716,67.4793,172.38,172.3,123.5338]
[1747389634019,61.68,172.38,172.3,123.5338]
[1747389634210,10.86657052,172.46,172.3,123.5338]
[1747389634412,121.58,172.45,172.3,123.5338]
[1747389634610,10.86657052,172.46,172.3,123.5338]
[1747389634816,121.58,172.45,172.3,123.5338]
[1747389635015,5.7985,172.41,172.36,5.7996]
[1747389635215,121.56,172.4,172.3,123.5338]
[1747389635716,61.66,172.41,172.3,123.5338]
[1747389636419,61.66,172.41,172.3,1.9338]
[1747389636614,3.7255,172.4,172.3,1.9338]
[1747389637018,5.8002,172.36,172.32,5.8012]
[1747389637214,61.68,172.35,172.3,1.9338]
[1747389637717,61.68,172.35,172.34,5.8006]
[1747389638820,61.6,172.39,172.3,1.9338]
[1747389639019,67.3989,172.39,172.3,1.9338]
[1747389639217,61.6,172.39,172.28,112.30309382]
[1747389639614,5.8001,172.36,172.28,112.30309382]
[1747389639815,61.68,172.36,172.34,5.8006]
[1747389640011,3.7711,172.45,172.31,10.86657052]
[1747389640207,5.7991,172.39,172.31,10.86657052]
[1747389640411,61.68,172.38,172.31,10.86657052]
[1747389640612,5.7988,172.4,172.31,10.86657052]
[1747389640913,61.66,172.39,172.31,10.86657052]
[1747389641213,1.9112,172.45,172.31,72.54657052]
[1747389641412,123.32,172.44,172.31,72.54657052]
[1747389641614,123.32,172.44,172.32,1.9362]
[1747389642020,5.7986,172.4,172.36,5.7997]
[1747389642218,67.4186,172.4,172.32,1.9362]
[1747389642617,67.4186,172.4,172.36,5.7997]
[1747389643219,67.4186,172.4,172.37,5.7996]
[1747389643520,67.4186,172.4,172.32,1.9362]
[1747389643912,5.799,172.39,172.36,5.7997]
[1747389644114,5.799,172.39,172.32,1.9362]
[1747389644421,5.8,172.36,172.31,72.54657052]
[1747389644720,1.9561,172.39,172.31,61.68]
[1747389645220,1.9561,172.39,172.28,112.30309382]
[1747389645416,3.7836,172.38,172.3,5.8017]
[1747389645617,5.8008,172.34,172.3,5.8017]
[1747389646116,5.8008,172.34,172.28,112.30309382]
[1747389646117,5.8008,172.34,172.31,5.8016]
[1747389646417,123.2,172.35,172.28,112.30309382]
[1747389646618,3.7836,172.38,172.32,5.801]
[1747389646819,67.2803,172.35,172.32,5.801]
[1747389647015,61.48,172.35,172.28,112.30309382]
[1747389647213,61.48,172.35,172.29,5.8021]
[1747389647417,5.8011,172.33,172.28,112.30309382]
[1747389648217,61.48,172.35,172.28,112.30309382]
[1747389648723,61.48,172.35,172.26,61.68]
[1747389648918,61.48,172.35,172.27,5.8029]
[1747389649118,61.48,172.35,172.26,61.68]
[1747389649616,61.48,172.35,172.28,5.8026]
[1747389649826,5.8015,172.32,172.24,10.86657052]
[1747389650122,3.7836,172.38,172.24,10.86657052]
[1747389650315,5.8006,172.34,172.24,10.86657052]
[1747389650821,5.8006,172.34,172.3,5.8017]
[1747389651021,5.8009,172.33,172.3,5.8017]
[1747389653922,5.8013,172.32,172.28,6.81914246]
[1747389654720,5.8018,172.31,172.28,6.81914246]
[1747389655022,61.28,172.33,172.28,6.81914246]
[1747389655221,123.0,172.33,172.28,6.81914246]
[1747389655423,5.8015,172.32,172.29,5.8022]
[1747389657325,67.0211,172.33,172.3,5.8019]
[1747389657625,3.7836,172.38,172.27,6.81914246]
[1747389657924,5.8001,172.36,172.33,5.8009]
[1747389658124,61.14,172.36,172.3,6.81914246]
[1747389658320,5.8005,172.35,172.27,122.86]
[1747389658529,61.14,172.36,172.3,6.81914246]
[1747389659022,66.94,172.36,172.33,5.8006]
[1747389659532,61.14,172.36,172.34,5.8005]
[1747389659918,61.14,172.36,172.3,6.81914246]
[1747389660228,5.8001,172.36,172.33,5.8008]
[1747389660528,61.12,172.37,172.27,122.86]
[1747389660724,5.8022,172.3,172.27,5.8026]
[1747389661126,61.14,172.32,172.24,6.81914246]
[1747389661426,61.14,172.32,172.23,61.72]
[1747389661627,1.8555,172.31,172.23,68.53914246]
[1747389661827,3.7836,172.38,172.26,6.81914246]
[1747389662122,61.72,172.35,172.26,6.81914246]
[1747389662525,61.18,172.35,172.26,6.81914246]
[1747389662824,1.8555,172.37,172.26,6.81914246]
[1747389663021,61.16,172.35,172.26,6.81914246]
[1747389663215,1.8555,172.37,172.29,6.81914246]
[1747389663421,63.0155,172.37,172.32,6.81914246]
[1747389664426,63.0155,172.37,172.29,68.53914246]
[1747389664921,5.801,172.33,172.3,5.8018]
[1747389665427,5.8006,172.34,172.29,61.72]
[1747389665822,63.0155,172.37,172.32,5.8012]
[1747389666019,5.8005,172.35,172.32,5.8012]
[1747389666216,61.12,172.36,172.32,5.8012]
[1747389666422,61.12,172.36,172.31,5.8014]
[1747389667117,5.8008,172.34,172.31,5.8014]
[1747389667527,61.12,172.36,172.3,5.8018]
[1747389667726,5.8011,172.33,172.29,61.72]
[1747389667924,61.12,172.36,172.29,61.72]
[1747389668320,5.8007,172.34,172.31,5.8014]
[1747389668821,5.801,172.33,172.3,5.8018]
[1747389669023,61.12,172.36,172.29,61.72]
[1747389669524,5.8007,172.34,172.31,5.8016]
[1747389670126,5.801,172.33,172.3,5.8018]
[1747389671727,5.8007,172.34,172.31,5.8015]
[1747389673226,5.801,172.33,172.3,5.8018]
[1747389673835,5.801,172.33,172.31,5.8016]
[1747389674135,5.8007,172.34,172.29,61.72]
[1747389674434,5.8007,172.34,172.31,5.8014]
[1747389675440,5.801,172.33,172.3,5.8018]
[1747389675729,61.04,172.32,172.26,6.81914246]
[1747389676035,61.04,172.32,172.27,5.8027]
[1747389676633,5.8022,172.3,172.27,5.8027]
[1747389677236,5.8016,172.31,172.28,5.8026]
[1747389677435,61.04,172.32,172.26,6.81914246]
[1747389677834,61.04,172.32,172.24,6.81914246]
[1747389678043,61.04,172.32,172.23,6.81914246]
[1747389678339,5.8033,172.26,172.22,6.81914246]
[1747389678536,3.8032,172.31,172.22,6.81914246]
[1747389678937,3.8032,172.31,172.2,6.81914246]
[1747389679341,3.8032,172.31,172.24,5.8039]
[1747389680441,5.8031,172.27,172.24,5.8039]
[1747389680742,122.1,172.3,172.24,5.8039]
[1747389680934,1.9116,172.29,172.24,5.8039]
[1747389681542,5.8031,172.27,172.24,5.8039]
[1747389681747,1.9116,172.29,172.2,6.81914246]
[1747389682440,5.8032,172.27,172.23,5.804]
[1747389682742,1.9116,172.29,172.2,6.81914246]
[1747389683245,5.8032,172.27,172.24,5.8039]
[1747389683634,1.9116,172.29,172.2,6.81914246]
[1747389683832,5.8034,172.26,172.2,6.81914246]
[1747389684143,1.9116,172.29,172.2,6.81914246]
[1747389684548,5.8036,172.26,172.22,5.8044]
[1747389684744,1.9116,172.29,172.2,6.81914246]
[1747389685144,1.9116,172.29,172.23,5.8041]
[1747389685739,5.8036,172.26,172.23,5.8041]
[1747389686447,5.8036,172.26,172.24,5.8039]
[1747389686645,5.8036,172.26,172.2,6.81914246]
[1747389686945,5.8039,172.25,172.2,6.81914246]
[1747389687145,1.9116,172.29,172.22,5.8045]
[1747389687336,5.8038,172.25,172.22,5.8045]
[1747389687745,60.68,172.26,172.19,120.3583898]
[1747389687950,5.8042,172.24,172.19,120.3583898]
[1747389688339,5.8042,172.24,172.21,5.8047]
[1747389688647,5.8037,172.25,172.19,120.3583898]
[1747389689043,60.68,172.26,172.19,120.3583898]
[1747389689339,5.8042,172.24,172.19,120.3583898]
[1747389689645,5.8042,172.24,172.21,5.8048]
[1747389689945,60.68,172.26,172.2,5.8051]
[1747389690345,60.68,172.26,172.19,120.3583898]
[1747389690747,121.84,172.26,172.19,6.81914246]
[1747389691244,121.84,172.26,172.2,5.805]
[1747389691642,5.8045,172.23,172.21,5.8049]
[1747389691837,121.84,172.26,172.21,5.8049]
[1747389692246,5.8041,172.24,172.21,5.8049]
[1747389692449,5.8041,172.24,172.22,5.8045]
[1747389692750,5.8041,172.24,172.19,6.81914246]
[1747389693246,5.8037,172.25,172.19,6.81914246]
[1747389693449,1.9116,172.29,172.19,6.81914246]
[1747389693748,121.72,172.28,172.19,6.81914246]
[1747389694350,61.16,172.28,172.19,6.81914246]
[1747389694540,5.8033,172.26,172.23,5.804]
[1747389697545,5.8033,172.26,172.24,5.8039]
[1747389698555,5.8033,172.26,172.23,5.8041]
[1747389699449,60.54,172.27,172.19,6.81914246]
[1747389699852,5.8038,172.25,172.22,5.8044]
[1747389700247,60.54,172.27,172.22,5.8044]
[1747389700754,60.54,172.27,172.19,6.81914246]
[1747389701052,60.54,172.27,172.2,5.8052]
[1747389701555,5.8044,172.23,172.2,5.8052]
[1747389701861,60.54,172.27,172.19,12.62454246]
[1747389702158,60.54,172.27,172.19,6.81914246]
[1747389702550,60.54,172.27,172.2,5.8052]
[1747389702853,5.8045,172.23,172.2,5.8052]
[1747389703257,60.54,172.27,172.2,5.8052]
[1747389703657,60.54,172.27,172.19,5.8056]
[1747389704061,60.54,172.27,172.2,5.8053]
[1747389704656,5.8045,172.23,172.2,5.8053]
[1747389705560,5.8045,172.23,172.21,5.8049]
[1747389705762,5.8045,172.23,172.18,61.14]
[1747389705965,60.54,172.27,172.18,61.14]
[1747389706461,5.8046,172.23,172.18,61.14]
[1747389706759,60.54,172.27,172.18,61.14]
[1747389707059,60.54,172.27,172.19,5.8054]
[1747389707357,60.54,172.27,172.08,6.81914246]
[1747389707550,60.54,172.27,172.11,680.10374201]
[1747389707751,6.81914246,172.25,172.11,673.28459955]
[1747389707956,6.81914246,172.25,172.11,171.96459955]
[1747389707957,64.3516,172.24,172.11,171.96459955]
[1747389708151,60.34,172.23,172.11,111.54459955]
[1747389708352,6.81914246,172.22,172.08,60.42]
[1747389708664,6.81914246,172.19,172.08,5.8092]
[1747389708870,120.82,172.18,172.08,5.8092]
[1747389709166,120.82,172.18,172.05,6.81914246]
[1747389709367,3.9316,172.17,172.05,6.81914246]
[1747389709558,5.8079,172.13,172.04,60.42]
[1747389709762,5.8079,172.13,172.09,5.8089]
[1747389710269,5.808,172.12,172.04,60.42]
[1747389710467,60.38,172.14,172.05,6.81914246]
[1747389710768,66.1874,172.14,172.05,6.81914246]
[1747389711068,60.38,172.14,172.11,5.8083]
[1747389711272,5.8067,172.16,172.08,6.81914246]
[1747389711472,60.34,172.15,172.08,6.81914246]
[1747389711673,60.34,172.15,172.13,5.8075]
[1747389711967,60.34,172.15,172.08,67.23914246]
[1747389712566,60.34,172.15,172.13,5.8073]
[1747389712769,60.28,172.16,172.08,67.23914246]
[1747389713072,64.2316,172.17,172.08,67.23914246]
[1747389713266,70.0381,172.17,172.08,67.23914246]
[1747389713770,64.2316,172.17,172.08,67.23914246]
[1747389714071,64.2316,172.17,172.15,5.8068]
[1747389714370,60.3,172.17,172.15,5.8068]
[1747389714871,60.26,172.18,172.16,5.8065]
[1747389715272,60.44,172.19,172.11,6.81914246]
[1747389715467,6.81914246,172.29,172.14,6.81914246]
[1747389715669,120.7,172.23,172.14,6.81914246]
[1747389715873,126.5044,172.23,172.16,6.81914246]
[1747389716276,120.7,172.23,172.16,6.81914246]
[1747389716478,66.0643,172.23,172.16,127.49914246]
[1747389717270,60.26,172.23,172.16,127.49914246]
[1747389718272,66.2435,172.26,172.23,5.8043]
[1747389718473,126.4235,172.26,172.23,5.8043]
[1747389718668,126.4235,172.26,172.16,127.49914246]
[1747389718875,126.4235,172.26,172.22,5.8046]
[1747389719377,5.8037,172.25,172.22,5.8046]
[1747389720572,5.8037,172.25,172.21,5.8048]
[1747389720771,5.8037,172.25,172.19,6.81914246]
[1747389721274,5.8034,172.26,172.22,5.8043]
[1747389721465,3.6993,172.28,172.19,6.81914246]
[1747389721669,5.803,172.27,172.2,60.44]
[1747389721867,5.803,172.27,172.2,120.52]
[1747389722077,5.8035,172.26,172.2,120.52]
[1747389722275,5.8035,172.26,172.22,5.8044]
[1747389722479,5.8035,172.26,172.2,120.52]
[1747389722979,5.8035,172.26,172.23,5.8041]
[1747389724081,5.8035,172.26,172.22,5.8046]
[1747389724278,5.804,172.24,172.2,120.52]
[1747389724677,5.804,172.24,172.2,126.325]
[1747389725078,5.8037,172.25,172.2,120.52]
[1747389725280,63.7993,172.28,172.2,120.52]
[1747389725486,63.7993,172.28,172.2,60.44]
[1747389725675,5.8038,172.25,172.2,60.44]
[1747389725878,63.7993,172.28,172.2,60.44]
[1747389726574,63.7993,172.28,172.17,60.42]
[1747389726976,5.8037,172.25,172.17,60.42]
[1747389727183,63.7993,172.28,172.17,60.42]
[1747389727583,63.7993,172.28,172.2,5.8052]
[1747389727784,63.7993,172.28,172.17,60.42]
[1747389729386,6.81914246,172.26,172.13,67.23914246]
[1747389729583,60.42,172.25,172.13,67.23914246]
[1747389729882,5.806,172.18,172.15,5.8067]
[1747389730185,5.8067,172.16,172.13,66.2275]
[1747389730381,5.8067,172.16,172.11,68.76794246]
[1747389730382,5.8067,172.16,172.11,66.81914246]
[1747389731184,5.807,172.15,172.11,66.81914246]
[1747389732185,5.807,172.15,172.12,5.8078]
[1747389733286,5.8074,172.14,172.11,5.8083]
[1747389734284,3.904,172.19,172.11,5.8083]
[1747389734487,5.8077,172.13,172.11,5.8083]
[1747389734689,59.9,172.16,172.11,5.8083]
[1747389734988,5.8075,172.14,172.11,5.8083]
[1747389735579,3.904,172.19,172.1,60.42]
[1747389735780,59.9,172.18,172.11,6.81914246]
[1747389736184,59.9,172.18,172.13,5.8076]
[1747389737089,5.8069,172.16,172.13,5.8076]
[1747389737290,59.9,172.18,172.12,5.808]
[1747389737487,5.8075,172.14,172.1,60.42]
[1747389737885,59.9,172.18,172.1,60.42]
[1747389738094,59.9,172.18,172.07,126.69914246]
[1747389738485,5.8071,172.15,172.07,126.69914246]
[1747389738791,59.9,172.18,172.07,126.69914246]
[1747389739090,59.9,172.18,172.1,6.81914246]
[1747389739592,59.9,172.18,172.13,5.8074]
[1747389739593,5.8067,172.16,172.13,5.8074]
[1747389739797,59.9,172.18,172.1,6.81914246]
[1747389740092,59.9,172.18,172.11,59.98]
[1747389740993,59.9,172.18,172.07,59.98]
[1747389741489,59.9,172.18,172.08,5.8093]
[1747389742191,5.809,172.09,172.06,5.8099]
[1747389742693,59.9,172.13,172.05,6.81914246]
[1747389743289,5.8082,172.12,172.06,6.81914246]
[1747389743491,59.9,172.13,172.06,6.81914246]
[1747389743693,59.98,172.14,172.06,6.81914246]
[1747389743990,5.8079,172.13,172.1,5.8085]
[1747389744586,5.8079,172.13,172.11,5.8083]
[1747389744794,65.7069,172.16,172.09,6.81914246]
[1747389745493,65.7069,172.16,172.13,5.8076]
[1747389745891,5.8071,172.15,172.09,6.81914246]
[1747389746089,5.8071,172.15,172.12,5.8078]
[1747389746891,59.9,172.16,172.09,6.81914246]
[1747389747193,5.8079,172.13,172.1,5.8085]
[1747389747994,5.808,172.12,172.1,5.8085]
[1747389749096,5.8078,172.13,172.1,5.8085]
[1747389750297,5.8081,172.12,172.09,12.62804246]
[1747389750488,5.8081,172.12,172.09,6.81914246]
[1747389750891,5.8084,172.11,172.08,119.88]
[1747389751697,5.8084,172.11,172.09,5.8088]
[1747389751897,5.808,172.12,172.09,5.8088]
[1747389752793,5.808,172.12,172.1,5.8086]
[1747389755296,5.8083,172.11,172.09,5.8088]
[1747389755595,1.8793,172.16,172.08,59.98]
[1747389755899,1.8793,172.16,172.08,5.8093]
[1747389757200,5.8087,172.1,172.08,5.8093]
[1747389758601,5.8087,172.1,172.07,5.8095]
[1747389758805,5.8091,172.09,172.07,5.8095]
[1747389759399,60.0,172.14,172.08,5.8091]
[1747389760099,5.8086,172.11,172.08,5.8091]
[1747389762402,5.8081,172.12,172.06,59.9]
[1747389763200,5.8081,172.12,172.09,5.8088]
[1747389764202,5.8084,172.11,172.08,5.8092]
[1747389765204,5.8087,172.1,172.08,5.8092]
[1747389767607,5.8085,172.11,172.08,5.8092]
[1747389768204,5.8085,172.11,172.09,5.8089]
[1747389769303,5.8087,172.1,172.08,5.8093]
[1747389769507,60.0,172.14,172.08,5.8093]
[1747389769809,5.8085,172.11,172.08,5.8093]
[1747389770009,60.0,172.14,172.08,5.8093]
[1747389770509,5.8088,172.1,172.08,5.8093]
[1747389771209,5.8091,172.09,172.07,5.8095]
[1747389771411,59.9,172.13,172.05,119.9]
[1747389771707,5.8077,172.13,172.1,5.8085]
[1747389772610,5.8074,172.14,172.11,5.8083]
[1747389772797,61.7793,172.16,172.11,5.8083]
[1747389773003,61.7793,172.16,172.08,6.81914246]
[1747389773605,5.8076,172.14,172.1,5.8085]
[1747389774310,5.8076,172.14,172.11,5.8083]
[1747389774508,5.807,172.15,172.08,66.71914246]
[1747389774706,1.8793,172.16,172.08,66.71914246]
[1747389775610,5.8073,172.14,172.11,5.8081]
[1747389776209,5.8071,172.15,172.11,5.8081]
[1747389776409,1.8793,172.16,172.11,5.8081]
[1747389777707,5.8074,172.14,172.11,5.8081]
[1747389781012,5.8079,172.13,172.1,5.8086]
[1747389781310,5.8079,172.13,172.08,59.9]
[1747389781515,1.8793,172.16,172.08,59.9]
[1747389781714,5.8076,172.14,172.11,5.8082]
[1747389782011,1.8793,172.16,172.11,5.8082]